bitfinex-derivatives/quotes_ETHF0:USTF0_20250606
["timestamp","ask_amount","ask_price","bid_price","bid_amount"]
[1749230172550,0.80095,2494.9,2494.8,0.80096]
[1749230172850,1.86539589,2494.9,2494.8,0.80096]
[1749230173242,1.06444589,2494.9,2494.8,0.80096]
[1749230175046,1.06444589,2494.9,2494.8,2.17566]
[1749230176051,0.00602277,2495.2,2495.1,0.80087]
[1749230176052,0.80686277,2495.2,2495.1,0.80087]
[1749230176349,0.80087,2495.1,2495.0,0.6321]
[1749230176554,1.86643072,2495.1,2495.0,0.6321]
[1749230176757,1.86643072,2495.1,2495.0,1.433]
[1749230177052,3.06777072,2495.1,2494.7,3.2078]
[1749230177253,0.80096,2494.8,2494.7,9.01876]
[1749230177453,1.86640684,2494.9,2494.8,0.80093]
[1749230177642,1.06546172,2494.9,2494.8,0.80093]
[1749230178048,1.06546172,2494.9,2494.8,2.06113]
[1749230179254,1.86639172,2494.9,2494.8,2.06113]
[1749230179652,1.06546172,2494.9,2494.8,2.06113]
[1749230179958,1.86639172,2494.9,2494.8,2.06113]
[1749230180357,1.06546172,2494.9,2494.8,2.06113]
[1749230180655,1.06620877,2495.0,2494.9,0.80093]
[1749230180859,0.80093,2494.9,2494.8,2.06114]
[1749230181056,1.86713877,2494.9,2494.8,2.06114]
[1749230181252,1.06620877,2494.9,2494.8,2.06114]
[1749230181562,0.80092,2495.0,2494.9,0.8009]
[1749230181854,1.06719233,2495.1,2494.8,3.26258]
[1749230182053,1.06719233,2495.0,2494.9,0.80093]
[1749230182256,0.80688277,2495.2,2495.1,0.80087]
[1749230182760,1.87445147,2495.2,2495.1,0.80087]
[1749230182948,0.8009,2495.0,2494.9,2.14572]
[1749230183154,1.8684687,2495.0,2494.9,2.14572]
[1749230183356,1.8684687,2495.0,2494.9,0.80092]
[1749230184057,1.0675687,2495.0,2494.9,0.80092]
[1749230184253,1.8684687,2495.0,2494.9,0.80092]
[1749230185361,1.0675687,2495.0,2494.9,0.80092]
[1749230186460,1.8684687,2495.0,2494.9,0.80092]
[1749230186657,1.0675687,2495.0,2494.9,0.80092]
[1749230187255,1.8684687,2495.0,2494.9,0.80092]
[1749230188159,1.8684687,2495.0,2494.9,1.40212]
[1749230188366,1.8684687,2495.0,2494.9,0.6012]
[1749230188553,5.0762687,2495.0,2494.9,0.6012]
[1749230188756,2.00234,2494.9,2494.3,1.4591]
[1749230188950,0.80113,2494.3,2494.2,0.80114]
[1749230189259,5.21063,2494.3,2493.9,0.00602277]
[1749230189460,0.80122,2494.0,2493.9,0.80726277]
[1749230189661,1.8687887,2494.0,2493.9,0.80726277]
[1749230189852,1.8687887,2494.0,2493.9,0.00602277]
[1749230190054,1.8687887,2494.0,2493.9,0.80727277]
[1749230190249,1.8687887,2494.0,2493.9,0.00602277]
[1749230190456,1.8687887,2494.0,2493.9,0.80727277]
[1749230193356,1.8687887,2494.0,2493.9,0.00602277]
[1749230193560,1.8687887,2494.0,2493.9,0.80727277]
[1749230193859,5.0765887,2494.0,2493.9,0.00602277]
[1749230194857,5.0765887,2494.0,2493.9,0.80727277]
[1749230194858,1.0675687,2494.0,2493.9,0.80727277]
[1749230195463,1.0675687,2494.0,2493.9,5.96417277]
[1749230195656,0.80119,2494.2,2493.9,5.16292277]
[1749230195960,1.8690253,2494.1,2494.0,0.80122]
[1749230196455,0.80122,2494.0,2493.9,0.80725277]
[1749230196662,4.00902,2494.1,2494.0,0.80122]
[1749230196857,5.07518489,2494.1,2494.0,0.80122]
[1749230197057,4.27396489,2494.1,2494.0,0.80122]
[1749230197263,1.06616489,2494.1,2494.0,0.80122]
[1749230198064,1.06616489,2494.1,2494.0,2.15842]
[1749230200668,4.0088,2494.7,2494.6,0.80103]
[1749230200862,0.80106,2494.6,2494.5,0.80104]
[1749230201461,0.80109,2494.5,2494.4,0.80108]
[1749230201660,0.80115,2494.3,2494.2,0.80113]
[1749230201860,3.2078,2494.5,2494.0,2.0483]
[1749230202065,0.80115,2494.3,2494.2,0.80112]
[1749230203167,0.80115,2494.3,2494.0,4.05135]
[1749230203168,0.80112,2494.4,2494.3,0.80109]
[1749230205065,0.80121,2494.1,2494.0,0.80118]
[1749230209473,0.80122,2494.0,2493.9,0.80726277]
[1749230209674,5.21071,2494.2,2494.0,0.80119]
[1749230209675,0.80121,2494.1,2494.0,0.80119]
[1749230211969,0.80122,2494.0,2493.9,0.80725277]
[1749230212171,0.8012,2494.1,2494.0,0.80119]
[1749230212564,1.8822537,2494.1,2494.0,0.80119]
[1749230213172,0.80122,2494.0,2493.9,0.80725277]
[1749230213374,1.8822737,2494.0,2493.9,0.80725277]
[1749230214573,1.8822737,2494.0,2493.9,0.00602277]
[1749230214772,6.8822737,2494.0,2493.9,0.00602277]
[1749230214974,4.00638,2493.9,2493.2,0.80145]
[1749230215273,0.80144,2493.4,2493.3,0.80141]
[1749230215473,1.0810537,2493.4,2493.3,0.80141]
[1749230215671,0.80139,2493.6,2493.5,0.80136]
[1749230215874,1.88325508,2493.6,2493.5,0.80136]
[1749230216084,0.80141,2493.5,2493.4,0.80139]
[1749230216269,1.88327508,2493.5,2493.4,0.80139]
[1749230216778,1.08186508,2493.5,2493.4,2.16579]
[1749230217167,1.88324508,2493.5,2493.4,2.16579]
[1749230218373,0.80141,2493.4,2493.3,0.00602277]
[1749230218572,1.88327508,2493.4,2493.3,0.00602277]
[1749230219468,1.88327508,2493.4,2493.3,0.80747277]
[1749230219970,1.08186508,2493.4,2493.3,0.80747277]
[1749230220682,0.00602277,2493.8,2493.7,0.80132]
[1749230221169,0.80731277,2493.8,2493.7,0.80132]
[1749230222269,0.00602277,2493.8,2493.7,0.80132]
[1749230228979,0.80731277,2493.8,2493.7,0.80132]
[1749230229179,0.00602277,2493.8,2493.7,0.80132]
[1749230229678,0.80731277,2493.8,2493.7,0.80132]
[1749230230075,0.80132,2493.7,2493.6,3.53272]
[1749230230277,0.80132,2493.7,2493.6,2.13752]
[1749230230579,0.80733277,2493.8,2493.7,0.80132]
[1749230231478,0.80135,2493.6,2493.5,0.80136]
[1749230232073,5.21115,2493.7,2493.3,0.00602277]
[1749230232277,4.00921,2493.4,2493.3,0.00602277]
[1749230232679,5.08208723,2493.4,2493.3,0.00602277]
[1749230233080,6.41628723,2493.4,2493.3,0.00602277]
[1749230233677,0.80164,2492.8,2492.6,3.2078]
[1749230233877,1.87398179,2492.7,2492.6,0.80163]
[1749230234079,1.07231179,2492.7,2492.6,0.80163]
[1749230234480,1.87395179,2492.7,2492.6,0.80163]
[1749230235882,0.80163,2492.8,2492.7,0.80164]
[1749230236082,1.87338624,2492.8,2492.7,0.80164]
[1749230237083,0.80169,2492.7,2492.6,0.80166]
[1749230237273,0.80169,2492.7,2492.5,0.80168]
[1749230237274,0.8017,2492.6,2492.5,0.80168]
[1749230238382,2.00404,2492.8,2492.4,1.32272277]
[1749230238383,0.8017,2492.5,2492.4,1.32272277]
[1749230238591,0.8017,2492.5,2492.4,0.00602277]
[1749230238779,1.87082977,2492.5,2492.4,0.00602277]
[1749230239585,0.80183,2492.1,2492.0,0.6865]
[1749230239783,0.80193,2491.8,2491.7,13.61648693]
[1749230239977,0.80196,2491.7,2491.6,0.80198]
[1749230240178,0.80195,2491.8,2491.7,0.80193]
[1749230240378,0.80199,2491.7,2491.6,0.80198]
[1749230240781,0.00602277,2491.9,2491.5,1.3555]
[1749230241082,0.80203,2491.6,2491.5,0.802]
[1749230241280,5.00302277,2491.9,2491.4,1.36502277]
[1749230241480,0.80203,2491.6,2491.5,0.802]
[1749230242186,0.80203,2491.5,2491.4,2.16705277]
[1749230242576,0.80203,2491.5,2491.4,0.80805277]
[1749230243287,0.80201,2491.6,2491.5,0.802]
[1749230243876,4.00979,2491.7,2491.6,0.80199]
[1749230244388,0.80198,2491.7,2491.6,0.80197]
[1749230245081,0.80203,2491.6,2491.5,0.80201]
[1749230245486,0.80198,2491.7,2491.6,0.80196]
[1749230245882,4.63935,2491.8,2491.7,0.80196]
[1749230246082,4.00975,2491.8,2491.7,0.80196]
[1749230247286,0.80199,2491.7,2491.6,0.80197]
[1749230248986,0.80199,2491.7,2491.6,2.11627]
[1749230249191,4.00975,2491.8,2491.7,0.80196]
[1749230249392,0.00602277,2491.9,2491.8,0.80193]
[1749230249590,2.77e-06,2491.9,2491.8,0.80193]
[1749230249890,2.77e-06,2491.9,2491.8,5.80193]
[1749230250190,2.77e-06,2491.9,2491.8,7.11623]
[1749230251290,3.2078,2492.8,2492.7,0.80164]
[1749230251486,3.2078,2492.8,2492.2,8.2068]
[1749230251793,3.2078,2492.8,2492.3,1.9865]
[1749230251991,0.80169,2492.6,2492.5,0.80167]
[1749230252293,0.80166,2492.7,2492.6,0.80165]
[1749230252890,0.80167,2492.6,2492.5,2.14558]
[1749230254294,0.80167,2492.6,2492.5,0.80168]
[1749230254495,0.8017,2492.5,2492.4,0.6643]
[1749230254994,0.80174,2492.4,2492.3,2.74294]
[1749230255291,0.80173,2492.5,2492.4,0.80171]
[1749230255787,3.21382277,2492.8,2492.4,2.00434]
[1749230255988,0.00602277,2492.8,2492.7,0.80164]
[1749230256389,0.00602277,2492.8,2492.7,1.49964]
[1749230257487,0.80763277,2492.8,2492.6,1.2986]
[1749230257692,0.8017,2492.5,2492.4,4.3409]
[1749230257990,0.8017,2492.5,2492.4,0.80174]
[1749230258492,0.80174,2492.4,2492.3,1.44436]
[1749230258790,5.21785277,2492.8,2492.3,1.44436]
[1749230259095,0.80173,2492.5,2492.4,0.8017]
[1749230259292,0.80174,2492.4,2492.3,1.44435]
[1749230259496,0.80173,2492.5,2492.4,0.8017]
[1749230260891,0.80174,2492.4,2492.3,1.44435]
[1749230261196,0.80169,2492.6,2492.5,0.80166]
[1749230261691,1.0564553,2492.6,2492.5,0.80166]
[1749230261889,3.21382277,2492.8,2492.5,0.80166]
[1749230261890,0.00602277,2492.8,2492.7,0.80164]
[1749230262093,1.06335451,2492.8,2492.7,0.80164]
[1749230263096,1.86496451,2492.8,2492.7,0.80164]
[1749230263296,0.80169,2492.6,2492.5,0.80168]
[1749230263499,1.85902174,2492.6,2492.5,0.80168]
[1749230264294,1.85900174,2492.6,2492.5,0.80168]
[1749230264495,1.05733174,2492.6,2492.5,0.80168]
[1749230264794,1.85900174,2492.6,2492.5,0.80168]
[1749230264991,1.05733174,2492.6,2492.5,0.80168]
[1749230265895,0.00602277,2492.8,2492.7,0.80164]
[1749230266105,1.06440346,2492.8,2492.7,0.80164]
[1749230266297,0.00602277,2492.8,2492.7,4.00944]
[1749230266697,2.77e-06,2492.8,2492.7,4.00944]
[1749230267197,2.77e-06,2492.8,2492.7,5.40684]
[1749230268403,3.2078,2493.9,2493.8,0.80129]
[1749230268620,5.06701556,2493.9,2493.8,0.80129]
[1749230269098,1.85921556,2493.9,2493.8,0.80129]
[1749230269402,1.05796556,2493.9,2493.8,0.80129]
[1749230269703,0.00602277,2494.1,2493.7,1.3454]
[1749230269898,1.05608889,2494.0,2493.9,0.80123]
[1749230270098,0.80128,2493.9,2493.8,0.80126]
[1749230270300,0.80124,2494.0,2493.9,0.80123]
[1749230270504,1.85728275,2494.0,2493.9,0.80123]
[1749230270696,0.80124,2494.0,2493.9,0.80123]
[1749230270903,0.80722277,2494.1,2494.0,0.80122]
[1749230271103,1.8623656,2494.1,2494.0,0.80122]
[1749230271304,1.0611656,2494.1,2493.7,1.3454]
[1749230271507,0.00602277,2494.1,2494.0,0.80122]
[1749230271809,3.2078,2494.6,2494.5,0.80106]
[1749230274211,4.00883,2494.6,2494.5,0.80106]
[1749230274408,3.2078,2494.6,2494.5,0.80106]
[1749230276406,0.00602277,2494.8,2494.7,0.801]
[1749230277708,0.80698277,2494.8,2494.7,0.801]
[1749230277909,0.00602277,2494.8,2494.7,0.801]
[1749230279711,2.77e-06,2494.8,2494.7,5.801]
[1749230280501,2.77e-06,2494.8,2494.7,0.801]
[1749230280709,0.801,2494.7,2494.6,4.5948]
[1749230280904,2.77e-06,2494.8,2494.3,3.8528]
[1749230280905,0.80107,2494.5,2494.3,3.8528]
[1749230281306,0.80105,2494.6,2494.5,0.80105]
[1749230281913,0.80102,2494.7,2494.6,0.80102]
[1749230282710,2.77e-06,2494.8,2494.3,3.8528]
[1749230282911,0.80103,2494.7,2494.6,0.80103]
[1749230283512,2.77e-06,2494.8,2494.5,0.80104]
[1749230283513,0.80104,2494.6,2494.5,0.80104]
[1749230284013,0.80102,2494.7,2494.6,0.80101]
[1749230284714,1.85729561,2494.7,2494.6,0.80101]
[1749230284917,1.85724062,2494.7,2494.6,0.80101]
[1749230285615,0.80104,2494.6,2494.5,0.80103]
[1749230286209,2.77e-06,2494.8,2494.3,5.2383]
[1749230286417,1.85755772,2494.7,2494.6,0.80102]
[1749230287605,1.05652772,2494.7,2494.6,0.80102]
[1749230287810,2.77e-06,2494.8,2494.7,0.801]
[1749230288910,0.6403,2495.3,2494.8,2.00242]
[1749230289111,0.6403,2495.3,2495.1,0.80086]
[1749230289413,0.80088,2495.1,2495.0,0.80088]
[1749230290010,0.80085,2495.2,2495.1,0.80085]
[1749230290211,0.80088,2495.1,2495.0,0.80087]
[1749230291718,0.80088,2495.1,2494.8,0.00602277]
[1749230291719,0.80093,2494.9,2494.8,0.00602277]
[1749230292108,2.79102,2495.3,2495.2,0.80084]
[1749230292304,2.79102,2495.3,2495.0,0.80088]
[1749230292305,0.80088,2495.1,2495.0,0.80088]
[1749230292513,10.177,2495.3,2494.8,0.00602277]
[1749230292816,0.80093,2494.9,2494.8,0.80697277]
[1749230293017,10.177,2495.3,2494.9,0.80091]
[1749230293018,0.80093,2495.0,2494.9,0.80091]
[1749230294217,0.80088,2495.1,2495.0,0.80087]
[1749230294410,0.80092,2495.0,2494.9,0.80091]
[1749230294720,0.80092,2495.0,2494.8,0.00602277]
[1749230294721,0.80089,2495.1,2495.0,0.80088]
[1749230295017,0.80091,2495.0,2494.9,0.8009]
[1749230295509,0.80092,2495.0,2494.9,0.80091]
[1749230295710,0.80092,2495.0,2494.8,0.00602277]
[1749230296214,0.80089,2495.1,2495.0,0.80087]
[1749230296413,0.80086,2495.2,2495.1,0.80085]
[1749230297117,9.62791,2495.3,2495.2,0.80084]
[1749230298014,0.80086,2495.2,2495.1,0.80085]
[1749230298413,9.62792,2495.3,2495.2,0.80084]
[1749230299416,0.80086,2495.2,2495.1,0.80085]
[1749230299612,0.80087,2495.1,2495.0,2.82648]
[1749230299918,0.80087,2495.1,2495.0,1.47788]
[1749230300117,8.8271,2495.3,2495.0,0.677]
[1749230300323,3.15429063,2495.4,2495.3,0.8008]
[1749230300512,8.93402063,2495.6,2495.5,0.80074]
[1749230300916,9.99597522,2495.6,2495.5,0.80074]
[1749230301221,0.80078,2495.5,2495.4,0.80076]
[1749230301422,1.86273459,2495.5,2495.4,0.80076]
[1749230301623,1.86273459,2495.5,2495.1,2.00218]
[1749230301922,1.06195459,2495.4,2495.3,0.8008]
[1749230302326,1.06195459,2495.4,2495.3,0.41019797]
[1749230304718,1.06207537,2495.6,2495.3,4.0086]
[1749230304921,5.37e-06,2495.5,2495.4,4.47977]
[1749230305221,3.15429063,2496.4,2496.3,0.80048]
[1749230305426,0.80045,2496.4,2496.3,0.80048]
[1749230306018,0.80052,2496.2,2496.1,0.00601058]
[1749230306226,4.00832,2496.2,2496.1,0.00601058]
[1749230306635,7.16261063,2496.2,2496.1,0.00601058]
[1749230307230,4.00832,2496.2,2496.1,0.00601058]
[1749230307631,4.00832,2496.2,2496.1,0.00059344]
[1749230307830,4.00832,2496.2,2496.1,0.80114344]
[1749230308130,30.90661063,2496.2,2496.1,0.00059344]
[1749230308331,0.80063,2495.9,2495.8,0.80062]
[1749230308530,0.80067,2495.8,2495.7,0.80066]
[1749230309234,0.80066,2495.8,2495.7,0.80065]
[1749230309438,0.80064,2495.9,2495.8,0.80061]
[1749230310431,0.80656995,2496.0,2495.9,0.80061]
[1749230310637,0.00596995,2496.0,2495.9,0.80061]
[1749230313140,0.80654995,2496.0,2495.9,0.80061]
[1749230313746,0.80061,2495.9,2495.8,1.46623]
[1749230313940,0.80061,2495.9,2495.8,0.6656]
[1749230314340,0.80064,2495.8,2495.7,0.80064]
[1749230314942,0.80064,2495.9,2495.8,0.80062]
[1749230317239,0.80655995,2496.0,2495.9,0.80061]
[1749230317442,1.85496552,2496.0,2495.9,0.80061]
[1749230318140,1.05437552,2496.0,2495.9,0.80061]
[1749230318844,1.12570903,2496.0,2495.9,0.80061]
[1749230319238,1.92628903,2496.0,2495.9,0.80061]
[1749230319542,1.12570903,2496.0,2495.9,0.80061]
[1749230319941,1.12570903,2496.0,2495.9,5.77061]
[1749230320946,1.05437552,2496.0,2495.9,5.77061]
[1749230321138,1.05437552,2496.0,2495.9,0.80061]
[1749230321338,1.05437552,2496.0,2495.9,5.77061]
[1749230324248,0.6009,2496.2,2496.1,0.80055]
[1749230324442,0.6009,2496.2,2496.1,4.00835]
[1749230324847,0.6009,2496.2,2496.1,5.33395]
[1749230325444,3.2078,2496.8,2496.7,0.80036]
[1749230326548,4.00812,2496.8,2496.7,0.80036]
[1749230327258,0.80036,2496.7,2496.6,2.11887]
[1749230328255,4.00814,2496.8,2496.7,0.80036]
[1749230328449,4.00814,2496.8,2496.7,0.50005174]
[1749230328650,3.2078,2496.8,2496.7,0.50005174]
[1749230328842,3.2078,2496.8,2496.7,1.89055174]
[1749230329444,4.00812,2496.8,2496.7,1.89055174]
[1749230329746,3.2078,2496.8,2496.7,1.89055174]
[1749230329957,3.27913351,2496.8,2496.7,1.89055174]
[1749230330457,4.07945351,2496.8,2496.7,1.89055174]
[1749230331953,3.27913351,2496.8,2496.7,1.89055174]
[1749230332351,0.07133351,2496.8,2496.7,1.89055174]
[1749230333246,0.87165351,2496.8,2496.7,1.89055174]
[1749230333453,0.80036,2496.7,2496.6,1.3185]
[1749230333645,0.80045,2496.4,2496.3,5.76945]
[1749230333850,0.80048,2496.3,2496.2,1.49339]
[1749230336455,1.0440154,2496.3,2496.2,1.49339]
[1749230336852,1.0440154,2496.3,2496.2,2.86909]
[1749230337350,1.8444954,2496.3,2496.2,2.86909]
[1749230337552,1.0440154,2496.3,2496.2,2.86909]
[1749230337755,0.80048,2496.4,2496.3,0.80046]
[1749230337948,1.04387638,2496.4,2496.3,0.80046]
[1749230338358,1.84432638,2496.4,2496.3,2.17616]
[1749230338756,1.84432638,2496.4,2496.3,0.80046]
[1749230340265,0.80048,2496.3,2496.2,1.49339]
[1749230340562,1.84435638,2496.3,2496.2,1.49339]
[1749230341461,1.04387638,2496.3,2496.2,1.49339]
[1749230341864,1.04387638,2496.3,2496.2,2.75399]
[1749230342165,0.80045,2496.5,2496.4,0.80042]
[1749230342360,1.05827976,2496.5,2496.4,0.80042]
[1749230342863,1.85869976,2496.5,2496.4,0.80042]
[1749230344361,0.80048,2496.4,2496.3,0.80046]
[1749230344563,1.85875976,2496.4,2496.3,0.80046]
[1749230344961,0.80048,2496.3,2496.2,6.5316]
[1749230345258,1.85875976,2496.3,2496.2,0.0692]
[1749230345461,6.85875976,2496.3,2496.2,0.0692]
[1749230345664,2.00138,2496.1,2495.6,0.6374]
[1749230345864,0.80063,2495.9,2495.8,0.80061]
[1749230346066,1.85890976,2495.9,2495.8,0.80061]
[1749230346366,1.85918542,2495.9,2495.8,0.80061]
[1749230346663,1.05855542,2495.9,2495.8,0.80061]
[1749230347380,1.85916542,2495.9,2495.8,0.80061]
[1749230348365,1.05855542,2495.9,2495.8,0.80061]
[1749230348760,1.85916542,2495.9,2495.8,0.80061]
[1749230348966,0.80064,2495.8,2495.7,2.18334]
[1749230349165,1.05855542,2495.8,2495.7,2.18334]
[1749230349663,1.85919542,2495.8,2495.7,2.18334]
[1749230351262,1.85919542,2495.8,2495.7,0.80064]
[1749230351563,0.80071,2495.6,2495.5,1.48393058]
[1749230351760,1.85926542,2495.6,2495.5,1.48393058]
[1749230351960,1.85926542,2495.6,2495.5,0.00601058]
[1749230353162,1.85926542,2495.6,2495.5,0.80675058]
[1749230353464,1.05855542,2495.6,2495.5,0.80675058]
[1749230354367,0.1528,2495.7,2495.6,0.80071]
[1749230354668,0.1528,2495.7,2495.6,2.81741]
[1749230355061,1e-05,2495.7,2495.6,7.81741]
[1749230355259,1e-05,2495.7,2495.6,11.49641]
[1749230356170,1e-05,2495.7,2495.6,16.46041]
[1749230360372,0.07134351,2495.7,2495.6,16.46041]
[1749230361672,7.22348,2496.6,2496.1,2.00134]
[1749230361673,3.8941,2496.6,2496.1,2.00134]
[1749230361869,1.07332355,2496.5,2496.4,0.80042]
[1749230362364,1.87406703,2496.5,2496.4,0.80042]
[1749230363069,1.87406703,2496.5,2496.4,0.50006599]
[1749230363667,0.80048,2496.4,2496.3,0.80047]
[1749230363869,1.87412703,2496.4,2496.3,0.80047]
[1749230364374,1.07364703,2496.4,2496.3,0.80047]
[1749230364666,0.80044,2496.5,2496.4,0.80045]
[1749230364868,1.87406655,2496.5,2496.4,0.80045]
[1749230365572,0.80048,2496.4,2496.3,0.80046]
[1749230365870,1.87410655,2496.4,2496.3,0.80046]
[1749230367664,1.87429947,2496.4,2496.3,0.80046]
[1749230368272,1.07381947,2496.4,2496.3,0.80046]
[1749230368771,1.07381947,2496.4,2496.3,5.29446]
[1749230368977,1.07381947,2496.4,2496.3,9.66316]
[1749230369166,0.80031,2496.9,2496.8,0.80029]
[1749230369362,3.9024,2497.0,2496.9,0.80029]
[1749230369568,0.80019,2497.2,2497.1,0.80023]
[1749230369770,0.80026,2497.0,2496.9,0.00601058]
[1749230370078,8.97106,2497.0,2496.9,0.00601058]
[1749230370264,13.97106,2497.0,2496.9,0.00601058]
[1749230370468,0.80047,2496.4,2496.3,0.80045]
[1749230371772,0.80047,2496.5,2496.4,0.80042]
[1749230371972,4.70583058,2496.6,2496.5,0.80042]
[1749230372278,0.80045,2496.5,2496.4,0.80043]
[1749230372870,4.70582058,2496.6,2496.5,0.80042]
[1749230373768,3.90541058,2496.6,2496.5,0.80042]
[1749230374075,3.21381058,2496.6,2496.5,0.80042]
[1749230375374,0.00601058,2496.6,2496.5,2.14022]
[1749230376775,0.07734409,2496.6,2496.5,2.14022]
[1749230379882,0.07734409,2496.6,2496.5,0.80042]
[1749230381175,0.07734409,2496.6,2496.5,2.06202]
[1749230381583,1.14419099,2496.6,2496.5,2.06202]
[1749230382580,1.94458099,2496.6,2496.5,2.06202]
[1749230382782,1.94458099,2496.6,2496.5,0.80042]
[1749230382987,0.80042,2496.5,2496.4,1.47574]
[1749230383182,0.80045,2496.4,2496.3,4.00826]
[1749230383375,0.80052,2496.3,2496.2,0.80048]
[1749230383581,1.0668469,2496.3,2496.2,0.80048]
[1749230383880,0.80049,2496.4,2496.3,0.80046]
[1749230384387,1.86838737,2496.4,2496.3,0.80046]
[1749230384892,0.80052,2496.3,2496.2,0.8005]
[1749230385085,1.86841737,2496.3,2496.2,0.8005]
[1749230385387,0.80052,2496.2,2496.1,0.00601058]
[1749230385693,3.20201737,2496.2,2496.1,0.00601058]
[1749230386782,3.20201737,2496.2,2496.1,0.00047077]
[1749230388689,8.20201737,2496.2,2496.1,0.00047077]
[1749230389990,1.06789737,2496.2,2496.1,0.80102077]
[1749230390489,1.86841737,2496.2,2496.1,0.00047077]
[1749230390987,1.93975088,2496.2,2496.1,0.00047077]
[1749230391587,1.93975088,2496.2,2496.1,0.80102077]
[1749230392397,1.13923088,2496.2,2496.1,0.80102077]
[1749230393284,1.93975088,2496.2,2496.1,0.80102077]
[1749230393593,1.93975088,2496.2,2496.1,0.00047077]
[1749230394785,2.63125088,2496.2,2496.1,0.00047077]
[1749230394986,2.63125088,2496.2,2496.1,0.80102077]
[1749230395189,1.13923088,2496.2,2496.1,0.80102077]
[1749230396188,1.06789737,2496.2,2496.1,0.80102077]
[1749230396389,1.06654182,2496.2,2496.1,0.80102077]
[1749230396892,1.86706182,2496.2,2496.1,0.80102077]
[1749230397086,1.93839533,2496.2,2496.1,0.80102077]
[1749230397287,1.93839533,2496.2,2496.1,0.00047077]
[1749230400983,1.86706182,2496.2,2496.1,0.00047077]
[1749230401185,6.82306182,2496.2,2496.1,0.00047077]
[1749230401589,6.82306182,2496.2,2496.1,0.80102077]
[1749230401886,6.82306182,2496.2,2496.1,0.00047077]
[1749230402091,6.89439533,2496.2,2496.1,0.00047077]
[1749230402590,6.89439533,2496.2,2496.1,0.80102077]
[1749230403192,1.13787533,2496.2,2496.1,0.80102077]
[1749230403383,1.93839533,2496.2,2496.1,0.00047077]
[1749230403988,1.93839533,2496.2,2496.1,0.80102077]
[1749230404386,1.13787533,2496.2,2496.1,0.80102077]
[1749230405094,1.06654182,2496.2,2496.1,0.80102077]
[1749230405301,1.86706182,2496.2,2496.1,2.17422077]
[1749230406090,1.06654182,2496.2,2496.1,2.17422077]
[1749230406295,0.67901058,2496.6,2496.4,0.80045]
[1749230406296,0.80043,2496.5,2496.4,0.80045]
[1749230406485,1.06735388,2496.5,2496.4,0.80045]
[1749230406688,1.86777388,2496.5,2496.4,0.80045]
[1749230406891,1.86777388,2496.5,2496.4,2.10515]
[1749230407092,1.06735388,2496.5,2496.4,2.10515]
[1749230407593,0.00601058,2496.6,2496.5,0.80042]
[1749230407789,1.0737698,2496.6,2496.5,2.80312]
[1749230407989,0.00601058,2496.6,2496.5,2.80312]
[1749230412893,3.2078,2497.4,2496.5,14.68375]
[1749230413095,1.06883182,2497.3,2497.2,0.8002]
[1749230413295,4.00786,2497.7,2497.6,0.80007]
[1749230413494,5.076968,2497.7,2497.6,0.80007]
[1749230413695,4.276908,2497.7,2497.6,0.80007]
[1749230413993,5.076948,2497.7,2497.6,0.80007]
[1749230414192,4.276908,2497.7,2497.6,0.80007]
[1749230414596,4.27493376,2497.7,2497.6,0.80007]
[1749230414989,0.80007,2497.6,2497.5,1.3651]
[1749230415190,1.86720376,2497.6,2497.5,1.3651]
[1749230415387,0.8001,2497.5,2497.4,0.00601058]
[1749230415591,1.86723376,2497.5,2497.4,0.00601058]
[1749230415990,0.8001,2497.5,2497.4,0.80614058]
[1749230416190,0.80008,2497.6,2497.5,0.80007]
[1749230416492,1.86631215,2497.6,2497.5,0.80007]
[1749230416692,1.86631215,2497.6,2497.5,2.14597]
[1749230417097,0.80008,2497.6,2497.5,1.3459]
[1749230417296,0.8001,2497.5,2497.4,0.00601058]
[1749230417489,0.8001,2497.5,2497.4,0.80614058]
[1749230417896,3.27913351,2497.7,2497.6,0.80007]
[1749230418096,3.27913351,2497.7,2497.5,2.10807]
[1749230418292,0.80007,2497.6,2497.5,2.10807]
[1749230418598,0.8001,2497.5,2497.4,0.00601058]
[1749230418786,0.8001,2497.5,2497.4,0.80614058]
[1749230419192,0.8001,2497.6,2497.5,0.80007]
[1749230419400,1.86708131,2497.6,2497.5,2.10807]
[1749230419898,1.86708131,2497.6,2497.5,1.308]
[1749230420195,1.86708131,2497.6,2497.5,2.1081]
[1749230420398,1.06698131,2497.6,2497.5,2.1081]
[1749230420995,3.2078,2497.7,2497.6,0.80007]
[1749230421497,3.2078,2497.7,2497.6,1.46947]
[1749230421698,0.00553981,2497.9,2497.8,0.8]
[1749230422095,0.00553981,2497.9,2497.8,2.0669]
[1749230422497,3.2078,2498.4,2498.3,0.79984]
[1749230422693,5.0744024,2498.4,2498.3,0.79984]
[1749230422999,0.79989,2498.2,2498.0,3.2078]
[1749230423199,0.79989,2498.2,2498.1,0.6379]
[1749230424201,0.79989,2498.2,2498.1,1.43777]
[1749230424900,0.79989,2498.2,2498.1,0.6379]
[1749230425999,0.8,2497.9,2497.7,0.654]
[1749230426198,0.6594,2498.3,2497.8,5.747]
[1749230426502,0.8,2497.8,2497.7,0.6675]
[1749230427003,0.8,2497.8,2497.7,1.46754]
[1749230427798,0.79995,2498.0,2497.9,0.79994]
[1749230427998,1.86732211,2498.0,2497.9,0.79994]
[1749230428204,1.06737211,2498.0,2497.8,1.3333]
[1749230428408,0.79997,2498.0,2497.9,0.79994]
[1749230428606,3.2078,2498.1,2497.8,1.3333]
[1749230428607,3.2078,2498.1,2498.0,0.79994]
[1749230428906,3.2078,2498.4,2498.3,0.79984]
[1749230429098,0.79984,2498.3,2498.2,1.47466]
[1749230429415,3.2078,2498.4,2498.3,0.79984]
[1749230429600,4.27594719,2498.4,2498.3,0.79984]
[1749230429909,4.27594719,2498.4,2498.3,2.13314]
[1749230430603,4.00761,2498.4,2498.3,2.13314]
[1749230430808,3.2078,2498.4,2498.3,2.13314]
[1749230431800,4.00761,2498.4,2498.3,2.13314]
[1749230432002,3.2078,2498.4,2498.3,2.13314]